Cogmind - Beta 13 @@@ ROGUE MODE // 2024.07.01 @ 03:12:02 Player: celerysam Result: Core destroyed Performance ------------- Evolutions (1) 500 Regions Visited (2) 400 Robots Destroyed (3) 15 Value Destroyed (97) 97 Prototype IDs (0) 0 Alien Tech Used (0) 0 Bonus (0) 0 TOTAL SCORE: 1012 Bonus ------- None Cogmind --------- Core Integrity 0/400 Matter 300/300 Energy 100/100 System Corruption 0% Temperature Cool (0) Movement Core (100) Ox1 Location -9/Materials Parts ------- > --- POWER (1) -------- (None) > --- PROPULSION (4) --- (None) > --- UTILITY (2) ------ Small Storage Unit > --- WEAPON (2) ------- (None) > --- INVENTORY (8) ---- Ion Engine Improved Ion Engine Light Treads Light Treads Improved Aluminum Leg Hover Unit Light Assault Rifle Heavy Assault Rifle Peak State ------------ > --- POWER ------------ Ion Engine > --- PROPULSION ------- Wheel Compact Wheel Compact Wheel Compact Wheel > --- UTILITY ---------- Small Storage Unit > --- WEAPON ----------- Assault Rifle Light Assault Rifle > --- INVENTORY -------- Ion Engine Light Treads Light Treads Hover Unit Light Assault Rifle [Rating: 8] Favorites ----------- Power Ion Engine Engine Ion Engine Propulsion Compact Wheel Wheel Compact Wheel Utility Small Storage Unit Storage Small Storage Unit Weapon Assault Rifle Ballistic Gun Assault Rifle Build | -11 -10 -9 ------- Run | Yrd Mat Mat Slots Evolved 2 | . . 2 Power . | . . . Propulsion 2 | . . 2 Utility . | . . . Weapon . | . . . Parts Attached 8 | 4 1 3 Power 1 | 1 . . Engine 1 | 1 . . Core . | . . . Reactor . | . . . Propulsion 4 | 2 . 2 Treads . | . . . Leg . | . . . Wheel 4 | 2 . 2 Hover . | . . . Flight . | . . . Utility 1 | 1 . . Device . | . . . Storage 1 | 1 . . Processor . | . . . Hackware . | . . . Protection . | . . . Artifact . | . . . Weapon 2 | . 1 1 Energy Gun . | . . . Energy Cannon . | . . . Ballistic Gun 2 | . 1 1 Ballistic Cannon . | . . . Launcher . | . . . Special Weapon . | . . . Impact Weapon . | . . . Slashing Weapon . | . . . Piercing Weapon . | . . . Special Melee Weapon . | . . . Unidentified Prototypes . | . . . Parts Lost 7 | . . 7 Power 1 | . . 1 Propulsion 4 | . . 4 Utility . | . . . Weapon 2 | . . 2 Highest Loss Streak 7 | . . 7 To Critical Strikes . | . . . Average Slot Usage (%) 56 | . 71 47 Engine 9 | . 14 6 Wheel 24 | . 28 22 Storage 12 | . 14 11 Ballistic Gun 10 | . 14 8 Naked Turns . | . . . Heaviest Build 12 | 10 12 12 Greatest Support 58 | 26 26 58 Greatest Overweight (x) 1 | . . 1 Average Overweight (x) . | . . . Largest Inventory Capacity 8 | 8 8 8 Average Capacity 7 | 7 8 8 Most Carried 8 | 8 8 8 Average Carried 6 | 4 7 6 Final Capacity 8 | 8 8 8 Final Carried 8 | 8 8 8 Class Distribution -------------------- 100% | Mutant Dominant Class ---------------- Mutant | -10/Materials Mutant | -9/Materials Resources | -11 -10 -9 ----------- Run | Yrd Mat Mat Matter Collected 312 | 209 14 89 Remotely . | . . . Salvage Created 103 | . 14 89 Parts 7 | . 2 5 Haulers Intercepted . | . . . Recyclers Shooed . | . . . Parts Field Recycled . | . . . Retrieved Matter . | . . . Parts Self-Destructed . | . . . Prevented . | . . . Kills | -11 -10 -9 ------- Run | Yrd Mat Mat Combat Hostiles Destroyed 2 | . . 2 Guns 2 | . . 2 Classes Destroyed 3 | . 1 2 Operator 1 | . 1 . Grunt 1 | . . 1 Duelist 1 | . . 1 Best Kill Streak 1 | . 1 1 Combat Bots Only 1 | . . 1 Max Kills in Single Turn 1 | . 1 1 Gunslinging . | . . . Exploded . | . . . Melee . | . . . Uniques/NPCs Destroyed . | . . . Combat | -11 -10 -9 -------- Run | Yrd Mat Mat Hostile Shots Fired 82 | . . 82 Missed 21 | . . 21 Damage Taken 978 | . . 978 Core 408 | . . 408 Absorbed by Shields . | . . . Core Remaining (%) 100 | 100 100 . Volleys Fired 23 | . 2 21 Largest 2 | . 1 2 Hottest 40 | . 20 40 Shots Fired 26 | . 2 24 Gun 26 | . 2 24 Cannon . | . . . Launcher . | . . . Special . | . . . Kinetic 26 | . 2 24 Thermal . | . . . Explosive . | . . . Electromagnetic . | . . . Robot Hit Streak 5 | . 2 5 Robot Miss Streak 3 | . . 3 Penetration Max . | . . . Secondary Targets . | . . . Shots Hit Robots 18 | . 2 16 Core Hits 11 | . 2 9 Critical Kills . | . . . Critical Parts Destroyed . | . . . Critical Strikes . | . . . Melee Attacks . | . . . Impact . | . . . Slashing . | . . . Piercing . | . . . Sneak Attacks . | . . . Combat Hostiles . | . . . Follow-up Attacks . | . . . Damage Inflicted 219 | . 24 195 Guns 195 | . 24 171 Cannons . | . . . Explosions . | . . . Melee . | . . . Ramming 24 | . . 24 Kinetic 195 | . 24 171 Thermal . | . . . Explosive . | . . . Electromagnetic . | . . . Impact . | . . . Slashing . | . . . Piercing . | . . . Highest Corruption . | . . . Average Corruption . | . . . Corruption Purged . | . . . Corruption Blocked . | . . . Overload Shots . | . . . Overflow Damage . | . . . Projectiles . | . . . Explosions . | . . . Melee . | . . . Knockbacks . | . . . Impact . | . . . Kinetic . | . . . Secondary . | . . . Self-Inflicted Damage 10 | . . 10 Shots . | . . . Rammed 10 | . . 10 Targets Rammed 10 | . . 10 Kicked . | . . . Crushed . | . . . Highest Temperature 19 | . . 19 Average Temperature 7 | . . 7 Received Heat Transfer 336 | . . 336 Siege Activations . | . . . Robots Corrupted . | . . . Combat Hostiles . | . . . Parts Fried . | . . . Impact Corruptions . | . . . Robots Melted . | . . . Combat Hostiles . | . . . Parts Melted . | . . . Heat Transferred . | . . . Parts Sabotaged . | . . . Parts Stolen . | . . . Parts Stripped . | . . . Power Chain Reactions . | . . . Alert | -11 -10 -9 ------- Run | Yrd Mat Mat Peak Influence 71 | . 39 71 Initial 16 | . . 16 Average 25 | . 22 38 Maximum Alert Level . | . . . Low Security (%) 100 | 100 100 100 Level 1 . | . . . Level 2 . | . . . Level 3 . | . . . Level 4 . | . . . Level 5 . | . . . High Security . | . . . Max Security . | . . . Squads Dispatched 1 | . . 1 Investigation . | . . . Extermination . | . . . Reinforcement 1 | . . 1 Assault . | . . . Garrison . | . . . Intercept . | . . . Searches Triggered . | . . . Construction Impeded . | . . . Haulers Reinforced . | . . . Active Scanning Responses . | . . . Cargo Convoy Interrupts . | . . . Stealth | -11 -10 -9 --------- Run | Yrd Mat Mat Distress Signals . | . . . Communications Jammed . | . . . Distress Signals . | . . . Times Spotted 18 | . 3 15 Peak Tracking Total 9 | . 3 9 Tactical Retreats 3 | . . 3 Traps | -11 -10 -9 ------- Run | Yrd Mat Mat Traps Triggered . | . . . Indirectly . | . . . Trap Hack Attempts . | . . . Triggered . | . . . Disarmed . | . . . Reprogrammed . | . . . Reused . | . . . Traps Extracted . | . . . Installed . | . . . Triggered . | . . . Machines | -11 -10 -9 ---------- Run | Yrd Mat Mat Machines Disabled . | . . . Max in Single Turn . | . . . Machines Repaired . | . . . Machines Dismantled . | . . . Machines Sabotaged . | . . . Overloaded Fab Kills . | . . . Hacking | -11 -10 -9 --------- Run | Yrd Mat Mat Machines Accessed 2 | . 2 . Terminals 2 | . 2 . Fabricators . | . . . Repair Stations . | . . . Recycling Units . | . . . Scanalyzers . | . . . Garrison Access . | . . . Total Hacks 3 | . 3 . Successful 2 | . 2 . Failed 1 | . 1 . Catastrophic . | . . . Database Lockouts . | . . . Manual 1 | . 1 . Terminals 3 | . 3 . Fabricators . | . . . Repair Stations . | . . . Recycling Units . | . . . Scanalyzers . | . . . Garrison Access . | . . . Terminal Hacks 2 | . 2 . Locate Traps 1 | . 1 . Zone Layout 1 | . 1 . Fabricator Hacks . | . . . Repair Station Hacks . | . . . Recycling Unit Hacks . | . . . Scanalyzer . | . . . Garrison Access Hacks . | . . . Unauthorized Hacks . | . . . Terminals . | . . . Fabricators . | . . . Repair Stations . | . . . Recycling Units . | . . . Scanalyzers . | . . . Garrison Access . | . . . Data Cores Recovered 1 | . 1 . Used . | . . . Hacking Detections . | . . . Full Trace Events . | . . . Feedback Events . | . . . Feedback Blocked . | . . . Robot Schematics Acquired . | . . . Robots Built . | . . . Authchips . | . . . Time . | . . . Total Robot Build Rating . | . . . Part Schematics Acquired . | . . . Parts Built . | . . . Authchips . | . . . Time . | . . . Total Part Build Rating . | . . . Parts Repaired . | . . . Time . | . . . Parts Recycled . | . . . Recycled Matter . | . . . Retrieved Matter . | . . . Retrieved Components . | . . . Parts Scanalyzed . | . . . Part Schematics Acquired . | . . . Parts Damaged . | . . . Bothacking | -11 -10 -9 ------------ Run | Yrd Mat Mat Used RIF Installer . | . . . Robots Hacked . | . . . Non-combat . | . . . Combat . | . . . Robot Hacks Applied . | . . . Relay Couplers Released . | . . . Fabnet Peak Effective % . | . . . Robots Rewired . | . . . Allies Hacked . | . . . Hacks Repelled . | . . . Allies | -11 -10 -9 -------- Run | Yrd Mat Mat Total Allies . | . . . Largest Group . | . . . Highest-Rated Group . | . . . Highest-Rated Ally . | . . . Total Orders . | . . . Ally Attacks . | . . . Total Damage . | . . . Kills . | . . . Allies Corrupted . | . . . Allies Melted . | . . . Intel | -11 -10 -9 ------- Run | Yrd Mat Mat Robot Analysis Total . | . . . Derelict Logs Recovered . | . . . Drone Launches . | . . . Drone Recoveries . | . . . Exploration | -11 -10 -9 ------------- Run | Yrd Mat Mat Turns Passed 281 | 67 72 142 Spaces Moved 214 | 58 70 86 Core 46 | 5 . 41 Treads . | . . . Legs . | . . . Wheels 168 | 53 70 45 Hover . | . . . Flight . | . . . Fastest Speed 50 | 50 90 95 Average Speed 92 | 88 90 97 Slowest Speed 100 | 100 90 100 Overloaded Moves . | . . . Propulsion Burnouts . | . . . Robots Hopped . | . . . Cave-ins Triggered . | . . . Exploration Rate (%) 13 | 4 24 13 Regions Visited 2 Branch Regions . Pre-discovered Areas . | . . . Known Exits Taken . | . . . Unknown Exits Taken 2 | 1 1 . Scrap Searched . | . . . Spaces Dug . | . . . Terrain Destroyed . | . . . Melee . | . . . Projectile . | . . . AOE . | . . . Terrain Rammed . | . . . Walls Destroyed . | . . . Machines Disabled . | . . . Actions | -11 -10 -9 --------- Run | Yrd Mat Mat Total 272 | 73 77 122 Wait . | . . . Move 212 | 57 69 86 Hop . | . . . Pick Up 18 | 12 3 3 Fast Attach . | . . . Attach 8 | 4 1 3 Detach . | . . . Swap . | . . . Drop 2 | . 2 . Fire 23 | . 2 21 Melee . | . . . Ram 9 | . . 9 Kick . | . . . Crush . | . . . Escape Stasis . | . . . Rewire . | . . . Trap . | . . . Miscellaneous . | . . . Route ------- -11/Scrapyard -10/Materials -9/Materials History --------- Turn | Location | Event 2 | -11/Scrapyard | Discovered new exit (range 16) 68 | -11/Scrapyard | Entered Materials 126 | -10/Materials | Discovered new exit (range 16) 140 | -10/Materials | Entered another Materials area 140 | -9/Materials | Evolved 2 slots: Propulsion x2 234 | -9/Materials | Core integrity fell below 50% 256 | -9/Materials | Core integrity fell below 20% 271 | -9/Materials | Lost 7 parts (1p4n2w) 282 | -9/Materials | Core destroyed Last Messages --------------- 00219_ Acquired Imp. Aluminum Leg. 00222_ Critical hit (Burn: +37). 00222_ Ion Engine destroyed. 00224_ Com. Wheel destroyed. 00231_ M-13 Machinist repairs Y-45 Defender. 00232_ Slammed into G-34 Mercenary. 00233_ Destabilizing: Core damaged (-8). 00234_ Critical hit (Burn: +37). 00234_ Slammed into G-34 Mercenary. 00237_ Critical hit (Burn: +37). 00238_ Slammed into G-34 Mercenary. 00240_ Lgt. Assault Rifle destroyed. 00260_ Acquired Hvy. Assault Rifle. 00264_ M-13 Machinist repairs G-34 Mercenary. 00276_ O-16 Technician: "IFF HANDSHAKE FAILED. SECURING TERMINAL." 00279_ ALERT: Hostiles spotted, dispatching reinforcements to Terminal M010. 00279_ K-01 Serf collects debris. 00282_ Slammed into S-10 Pest. 00282_ Destabilizing: Core damaged (-20). Map ----- +----------------------------------------------------+ | | | | | | | | | | | | | | | | | | | | | | | | | | | | | | | | | | | | | | | | | ????????????????############??#####??##???? | | ????????????????? # [#???? | | ??????????????????? s! # """ """ #???? | | ????????????????????? s# """ """ #???? | | ???????????????????????T"s# """ """ #???? | | ?????????????????######?#@# #???? | | ????????????????"""T"""?#s#? ! ?????? | | ???????????????? #g#??? ???????? | | ?????????????????"" """ # ######+###??????? | | ?????????????????"" """ + #??????? | | ?????????????????"" """ # k #??????? | | ???????????????? # #####+#######??? | | ??????????????? / ?# ## + #??? | | ??????????????# ?# ## """ # #??? | | ??????????????########??# ## """ # ???? | | ????????????????????????# ## """ # ???? | | ????????????????????????# ## # ???? | | ????????????????????????# ## # #??? | | ????????????????????????+ # !! + #??? | | ??????????????????? ????# ## !! # #??? | | ???????????????????/????# ## # #??? | | ??????????????????? #??? ####/##### #??? | | ??????????????????+ ??? " ???# #???# #??? | | ??????????????????# ??? "T ???# ##### #??? | | ??????????????????# ??? ?? ???# #??? | | ??????????????????# ????????######### #??? | | ??????????????????# +???????#!! # #??? | | ??????????????????# #???????#! / #??? | | ??????????????????# #???????# "T" #%#??? | | ??????????????????# #???????# """ #%#??? | +----------------------------------------------------+ Best States ------------- Heat Dissipation 28 Energy Generation 10 Energy Capacity 250 Matter Stores 300 Matter Capacity 300 Sight Range 16 Terrain Scan Density 10 Evasion (%) 42 Item Schematics ----------------- None Robot Schematics ------------------ None Fabricated ------------ Nothing Alien Tech Used ----------------- None Achievements -------------- None Challenges ------------ None Game ------ Seed ZioniteAntigravShearcannon Manual? 0 Play Time 00:06:31 Cumulative 75.2 hours Start 2024.07.01 @ 03:06:06 End 2024.07.01 @ 03:12:02 Sessions 1 Manual Loads 0 Difficulty Rogue Special Mode None Game No. 111 Rogue 111 Adventurer 0 Explorer 0 Win Type - Total 0 Types 0/0/0/0/0/0/0/0/0 Lore% 35 Gallery% 51 Achievement% 33 Wizard Run 0 Options --------- Layout 0 ASCII 0 Keyboard 0 Movement Mouse Keybinds 0 Fullscreen 1 Font 24/Smallcaps Map View 76x50 Zoom Use 0% Tactical HUD 1 Map Filters NONE Filters NONE Steam 1 RUN: 8c946d57-3e5c-4fbe-bca1-3fbc47de383f